bitfinex/quotes_ETHUSD_20250930
["timestamp","ask_amount","ask_price","bid_price","bid_amount"]
[1759266069589,0.7033,4198.9,4198.8,4.05762119]
[1759266070090,0.7033,4198.9,4198.8,4.17682119]
[1759266071697,0.0102,4199.0,4198.8,4.51244261]
[1759266072009,0.0102,4199.0,4198.9,0.50262119]
[1759266072156,0.0102,4199.0,4198.9,1.06772343]
[1759266072348,0.7016,4199.0,4198.9,1.06772343]
[1759266072747,0.7016,4199.0,4198.9,0.50262119]
[1759266074773,0.7016,4199.0,4198.9,1.13149262]
[1759266075169,0.2439,4199.0,4198.9,6.53262119]
[1759266075370,0.7016,4199.0,4198.9,7.28069262]
[1759266075653,3.0831194,4199.0,4198.9,6.65182119]
[1759266076984,3.0831194,4199.0,4198.9,0.62182119]
[1759266077189,3.0831194,4199.0,4198.9,5.74062119]
[1759266077390,0.7016,4199.0,4198.9,5.74062119]
[1759266077634,3.0831194,4199.0,4198.9,5.74062119]
[1759266077791,3.0841194,4199.0,4198.9,5.74062119]
[1759266079108,3.0841194,4199.0,4198.9,0.50262119]
[1759266079308,2.38163284,4198.8,4198.4,0.1192]
[1759266079548,2.38180089,4198.6,4198.5,6.53297807]
[1759266079694,3.09700089,4198.6,4198.5,6.53297807]
[1759266080808,0.7152,4198.6,4198.5,6.53297807]
[1759266081527,3.09694629,4198.6,4198.5,6.53297807]
[1759266082121,0.7152,4198.6,4198.5,1.29497807]
[1759266082420,3.09694629,4198.6,4198.5,6.53297807]
[1759266083442,3.07824629,4198.6,4198.5,6.53297807]
[1759266084016,3.07824629,4198.6,4198.5,6.53197807]
[1759266084206,3.07824629,4198.6,4198.5,4.05597807]
[1759266084411,3.07824629,4198.6,4198.5,6.53197807]
[1759266084809,3.07824629,4198.6,4198.5,5.73997807]
[1759266085621,3.07824629,4198.6,4198.5,0.50297807]
[1759266085823,3.07824629,4198.6,4198.5,5.73997807]
[1759266086336,3.07824629,4198.6,4198.5,0.50297807]
[1759266086647,3.07824629,4198.6,4197.8,0.62887143]
[1759266086648,2.38214345,4197.9,4197.8,0.62887143]
[1759266086851,0.7152,4197.9,4197.8,5.74017436]
[1759266087143,3.09734345,4197.9,4197.8,0.50317436]
[1759266087329,3.09734345,4197.9,4197.8,5.237]
[1759266087845,3.09734345,4197.9,4197.5,0.002]
[1759266087846,2.3823137,4197.6,4197.5,0.002]
[1759266088045,2.5015137,4197.6,4197.5,5.239]
[1759266088347,3.2167137,4197.6,4197.5,5.239]
[1759266089352,3.2167137,4197.6,4197.5,0.002]
[1759266089555,3.2167137,4197.6,4197.5,5.239]
[1759266090342,2.5015137,4197.6,4197.5,5.239]
[1759266090648,2.3823137,4197.6,4197.5,5.239]
[1759266091082,3.0975137,4197.6,4197.5,5.239]
[1759266091240,2.38227351,4197.7,4197.5,5.239]
[1759266091573,0.1192,4197.9,4197.5,5.239]
[1759266091574,2.38217269,4197.9,4197.6,1.1385]
[1759266091742,2.3822002,4197.8,4197.7,3.553]
[1759266092345,2.6236002,4197.8,4197.7,3.553]
[1759266092646,3.0974002,4197.8,4197.7,3.553]
[1759266092846,2.6236002,4197.8,4197.7,3.553]
[1759266093042,0.2414,4198.1,4197.7,3.553]
[1759266093276,2.38214345,4197.9,4197.8,1.0193]
[1759266093476,2.38214345,4197.9,4197.8,0.792]
[1759266093477,3.09734345,4197.9,4197.8,0.792]
[1759266093777,2.38214345,4197.9,4197.8,0.792]
[1759266093981,2.38210938,4198.0,4197.9,0.792]
[1759266094478,3.09730938,4198.0,4197.9,0.792]
[1759266094779,2.3822002,4197.8,4197.7,0.792]
[1759266095082,2.3822002,4197.8,4197.7,6.029]
[1759266095279,2.38225695,4197.7,4197.6,0.9112]
[1759266095578,2.38225695,4197.7,4197.6,3.3882]
[1759266095776,2.38225695,4197.7,4197.6,6.1482]
[1759266095984,3.09745695,4197.7,4197.6,6.1482]
[1759266096150,2.38225695,4197.7,4197.6,6.1482]
[1759266096478,2.38225695,4197.7,4197.6,6.1502]
[1759266097355,2.38225695,4197.7,4197.6,0.002]
[1759266097555,3.21665695,4197.7,4197.6,5.239]
[1759266097779,3.21665695,4197.7,4197.6,2.479]
[1759266097955,3.21665695,4197.7,4197.6,5.239]
[1759266098584,3.21665695,4197.7,4197.6,0.002]
[1759266098764,3.21665695,4197.7,4197.6,4.404]
[1759266099586,0.7152,4198.2,4197.6,4.404]
[1759266099891,2.38225695,4197.7,4197.6,4.404]
[1759266100387,0.7152,4198.2,4197.6,4.404]
[1759266100388,0.2414,4198.3,4197.7,0.792]
[1759266100587,0.2414,4198.3,4197.8,2.76]
[1759266100756,2.38185975,4198.4,4197.8,2.76]
[1759266100958,0.2414,4198.3,4197.8,2.76]
[1759266101289,2.38202996,4198.1,4197.9,2.477]
[1759266101491,2.3820867,4198.0,4197.9,2.477]
[1759266101789,2.3820867,4198.0,4197.9,5.237]
[1759266101990,0.2399,4198.8,4197.9,5.9149]
[1759266102179,2.38202996,4198.1,4198.0,0.2468]
[1759266102385,2.3820867,4198.0,4197.9,6.029]
[1759266102580,2.3820867,4198.0,4197.9,0.792]
[1759266102772,2.3820867,4198.0,4197.6,0.002]
[1759266102773,2.38225695,4197.7,4197.6,0.002]
[1759266102976,2.38225695,4197.7,4197.6,5.239]
[1759266104793,2.38220372,4197.8,4197.6,5.4858]
[1759266105095,2.3821034,4198.0,4197.6,5.4858]
[1759266105295,2.38225695,4197.7,4197.6,5.4858]
[1759266105481,2.38225695,4197.7,4197.6,0.2488]
[1759266105686,2.38225695,4197.7,4197.6,5.4858]
[1759266106807,0.4621,4198.2,4197.6,5.4858]
[1759266107795,2.38224703,4197.8,4197.7,0.792]
[1759266108106,2.38225695,4197.7,4197.6,0.002]
[1759266108313,3.08425695,4197.7,4197.6,5.238]
[1759266108509,3.08425695,4197.7,4197.6,2.479]
[1759266108708,3.08425695,4197.7,4197.6,5.238]
[1759266108911,2.3823137,4197.6,4197.5,1e-08]
[1759266109113,2.3823137,4197.6,4197.5,1.19600001]
[1759266109278,2.38242721,4197.4,4197.3,2.477]
[1759266109483,3.08442721,4197.4,4197.3,2.477]
[1759266109683,3.20362721,4197.4,4197.3,2.477]
[1759266110025,2.38254074,4197.2,4197.1,0.002]
[1759266110395,3.08454074,4197.2,4197.1,2.761]
[1759266111204,2.38254074,4197.2,4197.1,2.761]
[1759266111733,2.74152721,4197.4,4197.1,2.761]
[1759266111734,0.1192,4197.4,4197.1,2.761]
[1759266111881,2.38236199,4197.6,4197.2,1.4699]
[1759266112077,0.4621,4198.5,4197.4,0.792]
[1759266112398,0.4621,4198.5,4197.6,0.792]
[1759266112399,2.38203577,4198.1,4197.6,0.792]
[1759266112599,2.84384629,4198.6,4197.1,0.526]
[1759266112802,2.38238727,4197.5,4197.2,5.73834365]
[1759266112985,2.38248397,4197.3,4197.2,6.028]
[1759266113809,2.38254074,4197.2,4197.1,0.002]
[1759266114120,2.38254074,4197.2,4197.1,5.238]
[1759266114527,3.08454074,4197.2,4197.1,2.479]
[1759266114722,3.08454074,4197.2,4197.1,5.238]
[1759266114911,3.08454074,4197.2,4197.1,2.479]
[1759266115113,3.08454074,4197.2,4197.1,5.238]
[1759266116746,3.08454074,4197.2,4197.1,0.002]
[1759266116945,3.08454074,4197.2,4197.1,5.238]
[1759266117640,2.3825975,4197.1,4197.0,0.002]
[1759266117944,2.3825975,4197.1,4196.7,1e-08]
[1759266117945,2.38276782,4196.8,4196.7,1e-08]
[1759266118106,2.50196782,4196.8,4196.7,1e-08]
[1759266118310,5.60396782,4196.8,4196.7,1e-08]
[1759266118813,5.60396782,4196.8,4196.7,2.75900001]
[1759266119201,5.48476782,4196.8,4196.7,2.75900001]
[1759266119406,5.60396782,4196.8,4196.7,2.75900001]
[1759266120102,5.60396782,4196.8,4196.7,1e-08]
[1759266120333,2.38344932,4195.6,4195.5,2.477]
[1759266120551,2.84554932,4195.6,4195.5,2.477]
[1759266120854,2.38361976,4195.3,4195.2,2.477]
[1759266121048,3.08561976,4195.3,4195.2,2.477]
[1759266121342,2.38379022,4195.0,4194.9,2.477]
[1759266121545,2.62369022,4195.0,4194.9,2.477]
[1759266121739,2.62369022,4195.0,4194.9,5.236]
[1759266122047,3.08579022,4195.0,4194.9,5.236]
[1759266122456,2.3839124,4194.8,4194.7,2.477]
[1759266122749,2.3839124,4194.8,4193.8,0.002]
[1759266122750,2.38413122,4194.4,4194.3,2.479]
[1759266122951,3.08613122,4194.4,4194.3,5.239]
[1759266123310,3.08613122,4194.4,4194.3,0.002]
[1759266123622,3.08613122,4194.4,4194.3,3.688]
[1759266124557,3.08613122,4194.4,4194.3,0.002]
[1759266124710,2.38441546,4193.9,4193.8,2.48]
[1759266124913,5.48641546,4193.9,4193.8,2.761]
[1759266125554,2.38441546,4193.9,4193.8,2.761]
[1759266125754,2.38381749,4195.0,4193.8,2.761]
[1759266125755,2.38423173,4194.3,4193.8,3.4389]
[1759266125953,2.3843586,4194.0,4193.9,0.2468]
[1759266126108,2.3843586,4194.0,4193.9,5.4848]
[1759266126313,2.4,4194.6,4193.9,5.9159]
[1759266126512,2.3837334,4195.1,4194.0,0.6779]
[1759266126707,0.2399,4195.2,4194.1,0.6779]
[1759266126912,2.38418806,4194.3,4194.2,0.2468]
[1759266127143,2.38418806,4194.3,4194.2,0.6779]
[1759266127448,2.38418806,4194.3,4194.2,5.238]
[1759266127811,2.38441546,4193.9,4193.8,0.002]
[1759266128157,2.38441546,4193.9,4193.8,5.205]
[1759266129259,3.08641546,4193.9,4193.8,2.48]
[1759266129461,3.08641546,4193.9,4193.8,5.24]
[1759266129684,2.38441546,4193.9,4193.8,5.24]
[1759266129971,2.4,4194.9,4193.8,5.24]
[1759266129972,2.38437949,4194.0,4193.8,5.9179]
[1759266130153,2.38431804,4194.1,4193.9,0.6779]
[1759266130350,2.50351804,4194.1,4194.0,0.6779]
[1759266130551,2.38408061,4194.5,4194.0,1.4699]
[1759266130741,2.38309165,4196.3,4194.0,1.4699]
[1759266130742,2.38287663,4196.7,4194.2,0.792]
[1759266130946,1.17774458,4196.3,4194.3,3.4379]
[1759266131161,2.38383579,4195.0,4194.4,0.6866]
[1759266131366,2.38380212,4195.0,4194.5,0.6866]
[1759266131565,2.38392099,4194.8,4194.6,0.6866]
[1759266131778,2.38392099,4194.8,4194.7,3.4466]
[1759266132280,2.38350633,4195.5,4194.8,0.792]
[1759266132588,2.38346156,4195.6,4195.0,0.792]
[1759266132796,2.38346156,4195.6,4195.2,0.792]
[1759266133078,2.38346156,4195.6,4195.3,0.6866]
[1759266133279,2.6478,4196.6,4195.4,0.6866]
[1759266133576,2.38344385,4195.7,4195.5,3.0043]
[1759266133778,2.4,4196.5,4195.5,2.76]
[1759266133945,2.38293816,4196.5,4195.5,2.76]
[1759266134145,2.38328421,4195.9,4195.5,2.76]
[1759266134379,0.2478,4197.0,4195.6,1.4786]
[1759266134380,2.38315362,4196.2,4195.6,1.4786]
[1759266134674,2.38306073,4196.3,4195.7,0.6866]
[1759266134976,2.38300905,4196.4,4195.8,0.2443]
[1759266135163,0.2478,4197.0,4195.9,2.76]
[1759266135362,0.71541931,4197.6,4196.0,0.6866]
[1759266135363,2.38249767,4197.3,4196.0,0.6866]
[1759266135543,0.4443,4197.6,4196.1,1.4786]
[1759266135544,2.82661419,4197.6,4196.1,1.4786]
[1759266135871,2.38272515,4196.9,4196.1,1.4786]
[1759266136098,2.82661419,4197.6,4196.1,1.4786]
[1759266136099,2.38278232,4196.8,4196.2,0.6866]
[1759266136265,2.38265478,4197.0,4196.3,2.76]
[1759266136464,2.38283917,4196.7,4196.4,0.6866]
[1759266136664,2.38283917,4196.7,4196.3,2.76]
[1759266136665,0.001,4197.5,4196.6,0.792]
[1759266136864,2.38270245,4197.0,4196.7,3.4466]
[1759266137095,2.38270245,4197.0,4196.8,0.6866]
[1759266137396,0.001,4197.5,4196.1,0.2443]
[1759266137596,2.38265427,4197.0,4196.9,2.478]
[1759266137792,2.38265427,4197.0,4196.9,5.238]
[1759266137793,3.08815427,4197.0,4196.9,5.238]
[1759266138686,2.38379022,4195.0,4194.9,0.62457862]
[1759266138886,5.48929022,4195.0,4194.9,2.76]
[1759266139394,5.48929022,4195.0,4194.6,2.478]
[1759266139395,2.38384705,4194.9,4194.6,2.478]
[1759266139565,2.84624705,4194.9,4194.8,2.782]
[1759266139764,3.08934705,4194.9,4194.8,2.782]
[1759266140184,2.38396071,4194.7,4194.6,2.478]
[1759266140394,2.38413122,4194.4,4194.3,0.002]
[1759266140880,3.20883122,4194.4,4194.3,0.002]
[1759266141286,2.50333122,4194.4,4194.3,0.002]
[1759266141462,2.50333122,4194.4,4194.3,2.782]
[1759266141792,2.50333122,4194.4,4194.3,3.0108]
[1759266142662,2.50333122,4194.4,4194.3,2.782]
[1759266143874,2.50333122,4194.4,4194.3,0.002]
[1759266144074,2.50333122,4194.4,4194.3,5.259]
[1759266145015,2.38413122,4194.4,4194.3,5.9328]
[1759266145707,2.38413122,4194.4,4194.3,5.4878]
[1759266145906,2.8624,4195.4,4194.3,5.4878]
[1759266145907,3.11567873,4195.7,4194.3,5.9328]
[1759266146207,2.38407438,4194.5,4194.4,0.2288]
[1759266146419,2.38407438,4194.5,4194.4,0.6738]
[1759266147078,2.38407438,4194.5,4194.4,0.2288]
[1759266147414,2.38407438,4194.5,4194.4,0.6738]
[1759266147707,2.38407438,4194.5,4194.4,0.2288]
[1759266148011,2.38407438,4194.5,4194.4,0.6738]
[1759266148189,2.38407438,4194.5,4194.4,0.2288]
[1759266148689,2.38413122,4194.4,4194.3,5.259]
[1759266149088,2.38413122,4194.4,4194.3,2.481]
[1759266149286,2.50333122,4194.4,4194.3,5.258]
[1759266150574,2.50333122,4194.4,4194.3,5.4868]
[1759266151612,0.4624,4195.4,4194.3,5.4868]
[1759266151810,2.38413122,4194.4,4194.3,0.2308]
[1759266152009,2.38413122,4194.4,4194.3,3.9458]
[1759266152534,0.1192,4194.7,4194.3,4.3908]
[1759266152535,2.38407467,4194.5,4194.3,4.3908]
[1759266152836,2.38407438,4194.5,4194.4,0.2288]
[1759266153197,2.38407438,4194.5,4194.4,0.6738]
[1759266153602,2.38401922,4194.6,4194.4,5.9288]
[1759266153834,0.001,4194.9,4194.5,0.6738]
[1759266154021,0.001,4194.9,4194.6,0.6738]
[1759266154334,0.001,4194.9,4194.7,2.776]
[1759266154534,0.001,4194.9,4194.7,3.4498]
[1759266154760,0.001,4194.9,4194.8,0.6738]
[1759266159544,0.001,4194.9,4194.8,0.2288]
[1759266159842,0.001,4194.9,4194.8,0.6738]
[1759266160053,0.001,4194.9,4194.8,24.22076491]
[1759266160222,0.001,4194.9,4194.8,16.15194888]
[1759266160544,0.001,4194.9,4194.8,12.05598988]
[1759266160743,0.001,4194.9,4194.8,11.68940088]
[1759266161040,0.001,4194.9,4194.8,22.27363388]
[1759266161249,0.001,4194.9,4194.8,19.85467688]
[1759266161461,0.001,4194.9,4194.8,16.37786088]
[1759266161758,0.001,4194.9,4194.8,10.50102888]
[1759266162058,0.001,4194.9,4194.8,11.99645388]
[1759266162275,0.001,4194.9,4194.8,10.83991388]
[1759266162551,0.001,4195.4,4195.3,5.81401976]
[1759266162736,0.001,4197.5,4195.7,0.2384]
[1759266162916,0.001,4197.5,4196.4,2.38295775]
[1759266163244,2.38341358,4197.5,4196.6,2.38287028]
[1759266163448,2.38247333,4197.4,4196.7,2.774]
[1759266163956,2.38250053,4197.3,4196.7,2.774]
[1759266164165,0.001,4197.5,4196.7,2.774]
[1759266164332,2.38264006,4197.1,4196.7,2.774]
[1759266164535,2.38248397,4197.3,4196.7,2.774]
[1759266164845,0.238,4197.4,4196.7,2.774]
[1759266165039,2.38248825,4197.3,4196.7,2.774]
[1759266165356,0.4641,4197.5,4196.6,0.2499]
[1759266165563,2.38253442,4197.3,4196.8,5.251]
[1759266165863,0.4631,4197.2,4196.8,5.251]
[1759266166074,2.38249166,4197.3,4196.8,5.251]
[1759266166277,2.38254323,4197.2,4196.8,5.251]
[1759266166445,2.84571044,4197.1,4196.8,5.251]
[1759266166772,0.4631,4197.1,4196.8,5.251]
[1759266167188,0.001,4197.5,4196.8,5.251]
[1759266167356,2.38248812,4197.3,4196.8,5.251]
[1759266167554,2.38248812,4197.3,4196.8,5.5009]
[1759266167768,2.38254529,4197.2,4196.8,5.5009]
[1759266167957,2.38254529,4197.2,4196.8,5.251]
[1759266168977,2.38254529,4197.2,4196.5,0.2499]
[1759266169183,2.38254529,4197.2,4196.9,2.478]
[1759266169341,2.3825975,4197.1,4197.0,2.769]
[1759266169545,2.38258657,4197.2,4197.0,2.769]
[1759266169978,2.38266208,4197.0,4196.6,0.1192]
[1759266170275,2.3827258,4196.9,4196.7,5.249]
[1759266170474,2.3827258,4196.9,4196.8,2.771]
[1759266170782,0.1192,4196.9,4196.8,2.771]
[1759266171595,0.4631,4197.9,4196.8,2.771]
[1759266171764,0.1192,4197.3,4196.8,3.4947]
[1759266171960,0.1192,4197.3,4196.9,0.2499]
[1759266172276,0.001,4197.2,4197.0,0.2499]
[1759266172580,0.001,4197.2,4197.1,2.771]
[1759266172768,0.001,4197.2,4197.1,3.0209]
[1759266173260,0.001,4197.2,4197.1,3.1401]
[1759266173447,0.001,4197.2,4197.1,0.1192]
[1759266173658,0.001,4197.2,4197.1,5.248]
[1759266173659,2.84664074,4197.2,4197.1,5.248]
[1759266173865,3.08464074,4197.2,4197.1,5.248]
[1759266175591,2.84664074,4197.2,4197.1,5.248]
[1759266175792,3.08464074,4197.2,4197.1,5.248]
[1759266177101,2.84664074,4197.2,4197.1,5.248]
[1759266177472,3.08464074,4197.2,4197.1,5.248]
[1759266177884,2.84664074,4197.2,4197.1,5.248]
[1759266178485,3.08464074,4197.2,4197.1,5.248]
[1759266178672,2.38354074,4197.2,4197.1,5.248]
[1759266179294,2.84664074,4197.2,4197.1,5.248]
[1759266179474,2.38354074,4197.2,4197.1,5.248]
[1759266180613,0.7021,4197.2,4196.8,0.1192]
[1759266180905,0.7021,4197.2,4196.2,0.2499]
[1759266180906,2.62154074,4197.2,4197.1,2.477]
[1759266181130,2.62154074,4197.2,4197.1,5.243]
[1759266181300,2.74074074,4197.2,4197.1,5.243]
[1759266181645,3.20384074,4197.2,4197.1,5.243]
[1759266182128,2.38287208,4196.7,4196.4,0.1192]
[1759266182430,2.38287208,4196.7,4196.5,5.242]
[1759266182734,2.38288138,4196.6,4196.5,5.242]
[1759266182887,2.50192136,4196.9,4196.5,5.242]
[1759266182888,2.38280892,4196.8,4196.5,5.242]
[1759266183087,2.38280892,4196.8,4196.5,5.4919]
[1759266183290,0.001,4197.2,4196.6,0.7237]
[1759266183490,2.38259797,4197.1,4196.7,3.0149]
[1759266183831,0.1202,4197.2,4196.8,0.7237]
[1759266184017,0.1202,4197.2,4196.9,2.764]
[1759266184186,2.3825975,4197.1,4197.0,0.2499]
[1759266184391,2.3825975,4197.1,4197.0,3.0149]
[1759266185405,2.3825975,4197.1,4197.0,2.765]
[1759266190120,0.1202,4197.2,4197.0,2.765]
[1759266190323,2.3825975,4197.1,4197.0,3.0149]
[1759266190546,2.3825975,4197.1,4197.0,2.765]
[1759266191323,0.001,4197.2,4197.0,2.765]
[1759266191324,2.38355363,4197.2,4197.0,2.765]
[1759266191625,2.3825975,4197.1,4197.0,2.765]
[1759266192124,2.38265427,4197.0,4196.8,0.62749613]
[1759266192324,2.38260248,4197.1,4196.9,5.238]
[1759266192657,0.001,4197.2,4197.0,0.6773]
[1759266192856,0.001,4197.2,4197.1,0.50458666]
[1759266193066,0.001,4197.2,4197.1,1.18188666]
[1759266193469,0.001,4197.2,4197.1,3.51891263]
[1759266193630,0.001,4197.2,4197.1,6.34931013]
[1759266193826,0.001,4197.2,4197.1,3.94288666]
[1759266195754,0.001,4197.2,4197.1,3.49508666]
[1759266197835,0.001,4197.2,4197.1,3.94148666]
[1759266198031,0.001,4197.2,4197.1,6.32408416]
[1759266198230,0.001,4197.2,4197.1,3.94148666]
[1759266198762,0.001,4197.2,4197.1,3.89148666]
[1759266198962,0.001,4197.2,4197.1,0.68408666]
[1759266199155,0.001,4197.2,4197.1,6.36748666]
[1759266199358,0.001,4197.2,4197.1,9.51807722]
[1759266199753,0.001,4197.2,4197.1,18.53320322]
[1759266200353,0.001,4197.2,4197.1,16.18396422]
[1759266201365,0.001,4197.2,4197.1,17.97617125]
[1759266201569,0.001,4197.2,4197.1,16.72081322]
[1759266201776,0.001,4197.2,4197.1,19.00657125]
[1759266201961,0.001,4197.2,4197.1,17.63201322]
[1759266202158,0.001,4197.2,4197.1,17.75121322]
[1759266202363,0.001,4197.2,4197.1,27.18633197]
[1759266203574,0.001,4197.2,4197.1,39.50806497]
[1759266204268,0.001,4197.2,4197.1,34.44010397]
[1759266204465,0.001,4197.5,4197.4,3.17442721]
[1759266204651,0.001,4197.5,4197.4,18.90536339]
[1759266204851,0.001,4197.5,4197.4,20.85649893]
[1759266205174,0.001,4197.5,4197.4,20.85646508]
[1759266205378,0.001,4197.5,4197.4,26.17648108]
[1759266205751,0.001,4197.5,4197.4,25.44373308]
[1759266206275,0.001,4197.5,4197.4,24.18743139]
[1759266206452,0.001,4197.5,4197.4,27.83961508]
[1759266206656,0.001,4197.5,4197.4,26.82171339]
[1759266207158,0.001,4197.5,4197.4,31.05171339]
[1759266207384,0.001,4197.5,4197.4,46.31108739]
[1759266209387,0.001,4197.5,4197.4,16.31108739]
[1759266209683,0.001,4197.5,4197.4,46.31108739]
[1759266210787,0.001,4197.5,4197.4,46.81233901]
[1759266210963,0.001,4197.5,4197.4,47.07453875]
[1759266211456,0.001,4197.5,4197.4,46.81233901]
[1759266211652,0.001,4197.5,4197.4,44.05233901]
[1759266211859,0.001,4197.5,4197.4,34.00846326]
[1759266212481,0.001,4197.5,4197.4,49.28733901]
[1759266212658,0.001,4197.5,4197.4,48.66513901]
[1759266213388,0.6696,4198.6,4198.2,3.1739597]
[1759266213595,2.38158861,4198.9,4198.3,7.48825162]
[1759266213596,0.6696,4198.5,4198.3,7.48825162]
[1759266213791,2.38166662,4198.8,4198.5,0.1192]
[1759266214089,0.0102,4199.0,4198.7,0.2384]
[1759266214292,0.0102,4199.0,4198.8,2.759]
[1759266214589,0.6696,4198.9,4198.8,2.759]
[1759266214989,0.6696,4198.9,4198.8,2.8782]
[1759266215785,3.05117612,4198.9,4198.8,5.3542]
[1759266216087,0.6696,4198.9,4198.8,5.3542]
[1759266216289,3.05117612,4198.9,4198.8,5.3542]
[1759266218189,2.38175984,4198.6,4198.3,4.228]
[1759266218380,0.0102,4199.0,4198.5,0.1192]
[1759266218584,2.38168957,4198.7,4198.6,2.759]
[1759266218997,3.05128957,4198.7,4198.6,2.759]
[1759266219202,3.05128957,4198.7,4198.6,5.235]
[1759266220277,2.38168957,4198.7,4198.6,5.235]
[1759266220515,0.0102,4199.0,4198.6,5.85543752]
[1759266220677,0.6696,4198.9,4198.6,5.3542]
[1759266220874,0.7117,4198.8,4198.6,5.3542]
[1759266221080,0.4653,4198.7,4198.6,5.3542]
[1759266221277,0.7117,4198.7,4198.6,5.85544174]
[1759266221910,0.7117,4198.7,4198.6,5.235]
[1759266222301,3.09338957,4198.7,4198.6,5.235]
[1759266222501,0.7117,4198.7,4198.6,5.235]
[1759266222700,0.1294,4199.0,4198.6,5.73645466]
[1759266222878,0.1294,4199.0,4198.6,5.3542]
[1759266222879,0.4755,4199.0,4198.6,5.3542]
[1759266223078,2.85702737,4199.0,4198.6,5.3542]
[1759266223274,0.4755,4199.0,4198.7,0.50142239]
[1759266223479,0.4755,4199.0,4198.8,2.759]
[1759266223681,0.0102,4199.0,4198.8,2.759]
[1759266224116,0.7117,4198.9,4198.8,2.759]
[1759266224300,0.7117,4198.9,4198.8,3.26055828]
[1759266224498,0.7117,4198.9,4198.8,0.50155828]
[1759266224675,0.7117,4198.9,4198.8,5.73555828]
[1759266224876,3.09327612,4198.9,4198.8,5.73555828]
[1759266225325,3.09327612,4198.9,4198.6,0.1192]
[1759266225326,2.38163284,4198.8,4198.6,0.1192]
[1759266225617,2.38163284,4198.8,4198.7,5.234]
[1759266225820,3.09333284,4198.8,4198.7,5.234]
[1759266225983,0.7117,4198.8,4198.7,2.476]
[1759266226210,0.7117,4198.8,4197.6,0.74569558]
[1759266226211,2.38225695,4197.7,4197.6,0.74569558]
[1759266226544,3.09395695,4197.7,4197.6,2.476]
[1759266226752,3.09395695,4197.7,4197.6,5.234]
[1759266227108,2.38254074,4197.2,4196.9,0.1192]
[1759266227443,2.38254074,4197.2,4197.1,2.9804964]
[1759266227743,3.21344074,4197.2,4197.1,5.7384964]
[1759266227907,3.21344074,4197.2,4197.1,0.5044964]
[1759266228436,3.21344074,4197.2,4197.1,5.236]
[1759266228635,0.4653,4197.6,4197.1,5.236]
[1759266228842,2.38215507,4197.9,4197.2,0.75042618]
[1759266229148,2.38215507,4197.9,4197.1,5.236]
[1759266229149,2.38231343,4197.7,4197.3,3.26042618]
[1759266229309,2.38231343,4197.7,4197.4,0.50242618]
[1759266229510,0.4653,4197.6,4197.5,2.758]
[1759266229704,0.4653,4197.6,4197.5,5.235]
[1759266229904,3.0940137,4197.6,4197.1,0.002]
[1759266230209,2.38241893,4197.5,4197.2,5.73738051]
[1759266230428,0.7117,4197.4,4197.3,0.50238051]
[1759266230606,0.7117,4197.4,4197.3,5.73730615]
[1759266231033,3.09412721,4197.4,4197.3,0.50230615]
[1759266231239,0.7117,4197.4,4197.3,5.73730615]
[1759266231545,2.3812799,4199.5,4197.3,5.235]
[1759266231709,0.2464,4198.3,4197.4,0.50217721]
[1759266231904,0.7117,4198.2,4197.2,0.002]
[1759266232237,2.38203095,4198.1,4197.5,2.476]
[1759266232539,0.7117,4198.0,4197.6,5.235]
[1759266232739,0.7117,4197.9,4197.6,5.235]
[1759266233052,0.7117,4197.8,4197.6,5.235]
[1759266233219,0.2464,4197.8,4197.6,5.235]
[1759266233426,0.4653,4198.0,4197.6,5.235]
[1759266233625,0.4653,4197.9,4197.6,5.235]
[1759266233857,2.84748405,4197.9,4197.6,5.235]
[1759266234268,2.84745297,4197.9,4197.6,5.235]
[1759266234571,2.84749091,4197.9,4197.2,0.002]
[1759266234763,2.84749091,4197.9,4197.3,5.235]
[1759266235163,2.4,4198.7,4197.4,2.38239241]
[1759266235461,0.001,4198.9,4197.2,0.002]
[1759266235462,0.7117,4198.3,4197.2,0.002]
[1759266235671,2.3821833,4197.9,4197.5,2.477]
[1759266235864,2.8474833,4197.9,4197.6,2.759]
[1759266236054,0.4653,4197.9,4197.6,2.759]
[1759266236372,4.78169271,4198.7,4197.6,2.759]
[1759266236373,0.7117,4198.4,4197.6,2.759]
[1759266236679,2.38185116,4198.5,4197.7,0.248]
[1759266236879,2.38189975,4198.4,4197.7,0.248]
[1759266237877,2.38191839,4198.3,4197.7,0.248]
[1759266238175,2.84712161,4198.5,4197.7,0.248]
[1759266238373,2.38167298,4198.8,4197.8,0.023822]
[1759266238577,0.1192,4198.6,4197.9,2.759]
[1759266238766,0.1192,4198.6,4198.0,0.1192]
[1759266238965,0.1192,4198.6,4198.0,0.3672]
[1759266239159,2.50094749,4198.6,4198.0,0.3672]
[1759266239356,0.1192,4198.6,4198.0,0.3672]
[1759266239959,2.50097056,4198.6,4198.0,0.3672]
[1759266240175,0.1192,4198.6,4198.0,0.3672]
[1759266240354,0.1192,4198.6,4198.0,0.98641346]
[1759266240555,2.62898243,4198.9,4198.0,0.98641346]
[1759266240556,0.1192,4198.8,4198.1,3.15512424]
[1759266240853,0.001,4198.9,4198.5,0.2384]
[1759266241057,0.001,4198.9,4198.6,2.759]
[1759266241283,0.001,4198.9,4198.6,3.007]
[1759266241483,0.001,4198.9,4198.7,0.248]
[1759266241689,0.001,4198.9,4198.6,2.759]
[1759266242199,0.001,4198.9,4198.6,3.007]
[1759266242990,0.001,4198.9,4198.6,2.759]
[1759266243286,2.38180302,4198.5,4197.9,0.62649558]
[1759266243589,0.4653,4198.5,4198.0,5.85546262]
[1759266243766,0.4653,4198.5,4198.1,0.50126262]